[Event "Guimaraes Open 2019"]
[Site "Guimaraes"]
[Date "2019.08.31"]
[Round "5.15"]
[White "Pintor, Simao Maciel Abranch"]
[Black "Alonso Garcia, Aaron"]
[Result "1-0"]
[ECO "A04"]
[WhiteElo "2076"]
[BlackElo "2291"]
[Annotator "NA"]
[PlyCount "151"]
[EventDate "2019.08.28"]
[EventType "swiss"]
[EventCountry "POR"]
[SourceTitle "playchess.com"]
[Source "ChessBase"]
[SourceQuality "1"]
[TimeControl "5400+30"]

1. Nf3 {[%emt 0:08:05]} c5 {[%emt 0:00:48]} 2. c4 {[%emt 0:00:07]} Nc6 {[%emt 0:00:13]} 3. b3 {[%emt 0:00:20]} e5 {[%emt 0:02:36]} 4. Nc3 {[%emt 0:00:35]} g6 {[%emt 0:01:05]} 5. Bb2 {[%emt 0:01:30]} Bg7 {[%emt 0:00:05]} 6. Nd5 {[%emt 0:01:51]} Nge7 {[%emt 0:01:43]} 7. g3 {[%emt 0:00:55]} d6 {[%emt 0:03:00]} 8. Bg2 {[%emt 0:01:18]} O-O {[%emt 0:01:50]} 9. O-O {[%emt 0:00:24]} h6 {[%emt 0:09:09]} 10. Ne1 {[%emt 0:04:47]} Be6 {[%emt 0:00:08]} 11. Nc2 {[%emt 0:00:46]} Qd7 {[%emt 0:00:20]} 12. Re1 {[%emt 0:01:34]} Bh3 {[%emt 0:09:08]} 13. Bh1 {[%emt 0:00:57]} f5 {[%emt 0:02:50]} 14. f4 {[%emt 0:03:28]} Rae8 {[%emt 0:03:26]} 15. d3 {[%emt 0:03:09]} Nxd5 {[%emt 0:02:42]} 16. cxd5 {[%emt 0:04:26]} Nd4 {[%emt 0:01:16]} 17. Qd2 {[%emt 0:09:17]} Nxc2 {[%emt 0:13:17]} 18. Qxc2 {[%emt 0:00:05]} exf4 {[%emt 0:00:03]} 19. gxf4 {[%emt 0:00:36]} Re3 {[%emt 0:01:32]} 20. Bf3 {[%emt 0:02:57]} g5 {[%emt 0:01:40]} 21. Kf2 {[%emt 0:03:08]} Qe7 {[%emt 0:07:57]} 22. Rg1 {[%emt 0:04:17]} Re8 {[%emt 0:04:17]} 23. Rg3 {[%emt 0:12:43]} g4 {[%emt 0:01:27]} 24. Rag1 {[%emt 0:04:31]} Bxb2 {[%emt 0:05:29]} 25. Qxb2 {[%emt 0:01:08]} Qh4 {[%emt 0:04:46]} 26. b4 {[%emt 0:02:35]} c4 {[%emt 0:03:36]} 27. dxc4 {[%emt 0:01:09]} Kh7 {[%emt 0:01:13]} 28. c5 {[%emt 0:06:26]} Qe7 {[%emt 0:04:47]} 29. cxd6 {[%emt 0:00:18]} Qd7 {[%emt 0:00:00]} 30. Rxh3 {[%emt 0:03:15]} Qxd6 {[%emt 0:03:21]} 31. Qd4 {[%emt 0:01:31]} Qg6 {[%emt 0:06:41]} 32. Bxg4 {[%emt 0:02:16]} R3e4 {[%emt 0:02:19]} 33. Bxf5 {[%emt 0:03:47]} Rxe2+ {[%emt 0:00:18]} 34. Kf3 {[%emt 0:00:03]} R8e3+ {[%emt 0:00:22]} 35. Qxe3 {[%emt 0:00:05]} Rxe3+ {[%emt 0:00:02]} 36. Kxe3 {[%emt 0:00:08]} Qxf5 {[%emt 0:00:02]} 37. Rhg3 {[%emt 0:00:13]} h5 {[%emt 0:00:21]} 38. Rg7+ {[%emt 0:02:23]} Kh8 {[%emt 0:00:01]} 39. R7g5 {[%emt 0:00:22]} Qh3+ {[%emt 0:01:04]} 40. Ke4 {[%emt 0:00:22]} Qxh2 {[%emt 0:00:13]} 41. Kf5 {[%emt 0:00:25]} Qc2+ {[%emt 0:01:46]} 42. Ke6 {[%emt 0:00:35]} Qc8+ {[%emt 0:00:28]} 43. Ke5 {[%emt 0:01:14]} Qc3+ {[%emt 0:00:11]} 44. Kf5 {[%emt 0:00:19]} Qc2+ {[%emt 0:02:00]} 45. Kf6 {[%emt 0:00:07]} Qc3+ {[%emt 0:00:26]} 46. Kg6 {[%emt 0:02:34]} Kg8 {[%emt 0:01:19]} 47. Kxh5+ {[%emt 0:02:23]} Kf7 {[%emt 0:00:37]} 48. Rg7+ {[%emt 0:01:03]} Kf6 {[%emt 0:00:46]} 49. R1g6+ {[%emt 0:00:31]} Kf5 {[%emt 0:00:00]} 50. Rf7+ {[%emt 0:00:16]} Ke4 {[%emt 0:00:01]} 51. Re6+ {[%emt 0:01:15]} Kxd5 {[%emt 0:00:22]} 52. Re5+ {[%emt 0:00:06]} Kd6 {[%emt 0:00:30]} 53. Rf6+ {[%emt 0:00:51]} Kd7 {[%emt 0:00:12]} 54. Kg6 {[%emt 0:00:20]} Qxb4 {[%emt 0:00:42]} 55. Rd5+ {[%emt 0:03:23]} Ke7 {[%emt 0:00:56]} 56. Rf7+ {[%emt 0:00:14]} Ke6 {[%emt 0:00:27]} 57. Rdd7 {[%emt 0:00:38]} Qb1+ {[%emt 0:00:58]} 58. f5+ Ke5 59. Rfe7+ {[%emt 0:00:20]} Kf4 {[%emt 0:00:01]} 60. Rd4+ {[%emt 0:00:30]} Kf3 {[%emt 0:00:01]} 61. Rde4 {[%emt 0:01:08]} Qg1+ {[%emt 0:01:47]} 62. Kf7 {[%emt 0:00:13]} Qc5 {[%emt 0:00:24]} 63. R4e5 {[%emt 0:00:58]} Qc4+ {[%emt 0:00:34]} 64. Kf8 {[%emt 0:00:15]} Qc6 {[%emt 0:00:32]} 65. f6 {[%emt 0:00:48]} Kf4 {[%emt 0:00:54]} 66. f7 {[%emt 0:01:02]} Qh6+ {[%emt 0:00:59]} 67. Ke8 {[%emt 0:00:11]} Qc6+ {[%emt 0:00:01]} 68. Rd7 {[%emt 0:01:57]} Kxe5 {[%emt 0:01:26]} 69. f8=Q {[%emt 0:00:10]} Qc8+ {[%emt 0:00:01]} 70. Rd8 {[%emt 0:01:27]} Qc6+ {[%emt 0:00:54]} 71. Kf7 {[%emt 0:00:09]} Qf3+ {[%emt 0:00:16]} 72. Kg8 {[%emt 0:00:16]} Qh3 {[%emt 0:00:51]} 73. Qd6+ {[%emt 0:00:20]} Ke4 {[%emt 0:00:05]} 74. Re8+ {[%emt 0:00:17]} Kf3 {[%emt 0:00:01]} 75. Qd3+ {[%emt 0:00:08]} Kg2 {[%emt 0:00:01]} 76. Re2+ 1-0

[Event "Guimaraes Open 2019"]
[Site "Guimaraes"]
[Date "2019.08.31"]
[Round "5.16"]
[White "Gonzalez Eiris, Daniel"]
[Black "Jimenez Martinez, Jose Vicente"]
[Result "0-1"]
[ECO "B06"]
[WhiteElo "1977"]
[BlackElo "2264"]
[Annotator "NA"]
[PlyCount "90"]
[EventDate "2019.08.28"]
[EventType "swiss"]
[EventCountry "POR"]
[SourceTitle "playchess.com"]
[Source "ChessBase"]
[SourceQuality "1"]
[TimeControl "5400+30"]

1. e4 {[%emt 0:09:44]} d6 {[%emt 0:00:00]} 2. d4 {[%emt 0:00:05]} g6 {[%emt 0:00:00]} 3. Nc3 {[%emt 0:00:10]} Bg7 {[%emt 0:00:00]} 4. Bg5 {[%emt 0:00:17]} Nd7 {[%emt 0:02:32]} 5. Qd2 {[%emt 0:02:42]} c5 {[%emt 0:00:31]} 6. Nge2 {[%emt 0:03:17]} Ngf6 {[%emt 0:04:22]} 7. f3 {[%emt 0:02:02]} Qa5 {[%emt 0:02:15]} 8. Bh6 {[%emt 0:12:53]} Bxh6 {[%emt 0:00:41]} 9. Qxh6 {[%emt 0:00:06]} b5 {[%emt 0:00:49]} 10. dxc5 {[%emt 0:06:21]} b4 {[%emt 0:06:59]} 11. Nd5 {[%emt 0:06:57]} Nxd5 {[%emt 0:02:34]} 12. exd5 {[%emt 0:00:05]} Qxc5 {[%emt 0:00:21]} 13. Qg7 {[%emt 0:04:50]} Rf8 {[%emt 0:00:27]} 14. Qd4 {[%emt 0:14:30]} Qxd4 {[%emt 0:01:20]} 15. Nxd4 {[%emt 0:00:05]} Nb6 {[%emt 0:01:16]} 16. Nb5 {[%emt 0:04:28]} Kd8 {[%emt 0:01:56]} 17. c4 {[%emt 0:04:25]} bxc3 {[%emt 0:04:03]} 18. Nxc3 {[%emt 0:00:05]} Bb7 {[%emt 0:00:05]} 19. O-O-O {[%emt 0:00:06]} Rc8 {[%emt 0:00:04]} 20. Kb1 {[%emt 0:00:08]} Rc5 {[%emt 0:00:06]} 21. Nb5 {[%emt 0:07:02]} Nxd5 {[%emt 0:03:24]} 22. Nxa7 {[%emt 0:00:36]} Ra5 {[%emt 0:06:33]} 23. Nb5 {[%emt 0:02:33]} Ne3 {[%emt 0:00:32]} 24. Nxd6 {[%emt 0:07:41]} exd6 {[%emt 0:00:52]} 25. Rxd6+ {[%emt 0:00:03]} Kc7 {[%emt 0:01:09]} 26. Rd3 {[%emt 0:00:15]} Re8 {[%emt 0:00:15]} 27. b4 {[%emt 0:02:18]} Rd5 {[%emt 0:01:00]} 28. Rc3+ {[%emt 0:01:00]} Kb6 {[%emt 0:00:08]} 29. Bc4 {[%emt 0:06:19]} Nxc4 {[%emt 0:00:04]} 30. Rxc4 {[%emt 0:00:06]} Re2 {[%emt 0:00:04]} 31. Rc2 {[%emt 0:01:16]} Rdd2 {[%emt 0:00:14]} 32. Rxd2 {[%emt 0:00:11]} Rxd2 {[%emt 0:00:03]} 33. a4 {[%emt 0:02:32]} Rxg2 {[%emt 0:00:23]} 34. Rd1 {[%emt 0:00:03]} Bxf3 {[%emt 0:00:58]} 35. Rd6+ {[%emt 0:00:05]} Kc7 {[%emt 0:00:10]} 36. Rf6 {[%emt 0:00:06]} Be4+ {[%emt 0:00:06]} 37. Ka1 {[%emt 0:00:08]} Bd5 {[%emt 0:00:06]} 38. a5 {[%emt 0:00:17]} Rg4 {[%emt 0:00:14]} 39. Rb6 {[%emt 0:00:30]} Rg2 {[%emt 0:01:06]} 40. h4 {[%emt 0:00:19]} f5 {[%emt 0:00:24]} 41. Rf6 {[%emt 0:00:14]} Ra2+ {[%emt 0:00:08]} 42. Kb1 {[%emt 0:00:03]} Ra4 {[%emt 0:00:24]} 43. Rb6 {[%emt 0:00:42]} f4 {[%emt 0:00:08]} 44. Rb5 {[%emt 0:00:49]} Be4+ {[%emt 0:00:24]} 45. Kc1 {[%emt 0:00:06]} f3 {[%emt 0:00:09]} 0-1

[Event "Guimaraes Open 2019"]
[Site "Guimaraes"]
[Date "2019.08.31"]
[Round "5.17"]
[White "Fidalgo, Andre Neves"]
[Black "Gomez Peco, David"]
[Result "1-0"]
[ECO "E62"]
[WhiteElo "2261"]
[BlackElo "2104"]
[Annotator "NA"]
[PlyCount "101"]
[EventDate "2019.08.28"]
[EventType "swiss"]
[EventCountry "POR"]
[SourceTitle "playchess.com"]
[Source "ChessBase"]
[SourceQuality "1"]
[TimeControl "5400+30"]

1. d4 {[%emt 0:00:00]} Nf6 {[%emt 0:02:49]} 2. c4 {[%emt 0:00:00]} g6 {[%emt 0:00:21]} 3. g3 {[%emt 0:00:00]} Bg7 {[%emt 0:00:21]} 4. Bg2 {[%emt 0:00:00]} O-O {[%emt 0:00:07]} 5. Nf3 {[%emt 0:00:06]} d6 {[%emt 0:03:21]} 6. O-O {[%emt 0:00:10]} Nc6 {[%emt 0:00:21]} 7. Nc3 {[%emt 0:00:08]} e5 {[%emt 0:00:16]} 8. dxe5 {[%emt 0:00:47]} Nxe5 {[%emt 0:00:24]} 9. Nxe5 {[%emt 0:03:54]} dxe5 {[%emt 0:00:11]} 10. Qb3 {[%emt 0:06:25]} c6 {[%emt 0:02:13]} 11. Be3 {[%emt 0:00:59]} Qc7 {[%emt 0:02:50]} 12. Rfd1 {[%emt 0:00:38]} Be6 {[%emt 0:03:30]} 13. Bc5 {[%emt 0:04:10]} Rfd8 {[%emt 0:01:10]} 14. Rxd8+ {[%emt 0:01:19]} Rxd8 {[%emt 0:00:17]} 15. Bxa7 {[%emt 0:01:03]} b5 {[%emt 0:00:28]} 16. Be3 {[%emt 0:03:21]} Bxc4 {[%emt 0:00:31]} 17. Qc2 {[%emt 0:00:28]} Nd5 {[%emt 0:01:36]} 18. Nxd5 {[%emt 0:01:30]} Bxd5 {[%emt 0:00:16]} 19. Bxd5 {[%emt 0:04:18]} Rxd5 {[%emt 0:00:09]} 20. Rc1 {[%emt 0:00:14]} Rd6 {[%emt 0:01:26]} 21. b3 {[%emt 0:10:21]} Bf8 {[%emt 0:10:23]} 22. Bc5 {[%emt 0:01:09]} Re6 {[%emt 0:00:18]} 23. a4 {[%emt 0:01:24]} bxa4 {[%emt 0:02:51]} 24. bxa4 {[%emt 0:00:07]} Qa5 {[%emt 0:00:24]} 25. Bxf8 {[%emt 0:07:29]} Kxf8 {[%emt 0:00:39]} 26. Qe4 {[%emt 0:00:39]} Qd5 {[%emt 0:02:00]} 27. Qb4+ {[%emt 0:00:56]} Kg7 {[%emt 0:01:45]} 28. a5 {[%emt 0:02:16]} Qa2 {[%emt 0:01:52]} 29. Qe1 {[%emt 0:03:46]} Qa3 {[%emt 0:06:43]} 30. Ra1 {[%emt 0:01:24]} Qc5 {[%emt 0:00:13]} 31. a6 {[%emt 0:00:57]} Qa7 {[%emt 0:00:13]} 32. Qb1 {[%emt 0:05:05]} c5 {[%emt 0:00:34]} 33. Qd3 {[%emt 0:00:06]} f6 {[%emt 0:02:19]} 34. Ra5 {[%emt 0:05:35]} Rc6 {[%emt 0:03:31]} 35. Qb5 {[%emt 0:05:33]} Rc7 {[%emt 0:01:31]} 36. Ra4 {[%emt 0:00:14]} Rd7 {[%emt 0:02:55]} 37. Ra1 {[%emt 0:00:43]} Rd6 {[%emt 0:01:03]} 38. Ra5 {[%emt 0:00:48]} h5 {[%emt 0:00:52]} 39. Qc4 {[%emt 0:03:24]} Qa8 {[%emt 0:04:14]} 40. Ra1 {[%emt 0:02:23]} Qa7 {[%emt 0:00:36]} 41. h4 {[%emt 0:02:16]} Rc6 {[%emt 0:09:27]} 42. Kh2 {[%emt 0:01:10]} Rc7 {[%emt 0:01:12]} 43. Rd1 {[%emt 0:02:43]} Qb8 {[%emt 0:14:50]} 44. Rd6 {[%emt 0:00:44]} Qg8 {[%emt 0:01:32]} 45. Qb5 {[%emt 0:03:00]} c4 {[%emt 0:05:43]} 46. Rd7+ {[%emt 0:01:05]} Rxd7 {[%emt 0:00:35]} 47. Qxd7+ {[%emt 0:00:05]} Kh6 {[%emt 0:00:24]} 48. Qd2+ {[%emt 0:01:16]} Kg7 {[%emt 0:00:53]} 49. a7 {[%emt 0:00:15]} Qa8 {[%emt 0:04:13]} 50. Qd7+ {[%emt 0:01:00]} Kh6 {[%emt 0:00:38]} 51. Qc7 {[%emt 0:00:04]} 1-0

[Event "Guimaraes Open 2019"]
[Site "Guimaraes"]
[Date "2019.08.31"]
[Round "5.18"]
[White "Lopez Gonzalez, Alfonso"]
[Black "Martins, Diogo Faria Oliveira"]
[Result "0-1"]
[ECO "A67"]
[WhiteElo "2219"]
[BlackElo "1984"]
[Annotator "NA"]
[PlyCount "132"]
[EventDate "2019.08.28"]
[EventType "swiss"]
[EventCountry "POR"]
[SourceTitle "playchess.com"]
[Source "ChessBase"]
[SourceQuality "1"]
[TimeControl "5400+30"]

1. d4 {[%emt 0:00:00]} Nf6 {[%emt 0:00:00]} 2. c4 {[%emt 0:00:00]} c5 {[%emt 0:00:00]} 3. d5 {[%emt 0:00:00]} e6 {[%emt 0:00:00]} 4. Nc3 {[%emt 0:00:00]} exd5 {[%emt 0:00:00]} 5. cxd5 {[%emt 0:00:00]} d6 {[%emt 0:00:00]} 6. e4 {[%emt 0:00:00]} g6 {[%emt 0:00:00]} 7. f4 {[%emt 0:00:07]} Bg7 {[%emt 0:00:06]} 8. Bb5+ {[%emt 0:00:42]} Nfd7 {[%emt 0:00:40]} 9. a4 {[%emt 0:00:43]} O-O {[%emt 0:00:05]} 10. Nf3 {[%emt 0:04:11]} Na6 {[%emt 0:00:08]} 11. O-O {[%emt 0:03:25]} Nc7 {[%emt 0:00:27]} 12. Bc4 {[%emt 0:10:47]} a6 {[%emt 0:07:53]} 13. Be3 {[%emt 0:16:47]} Rb8 {[%emt 0:03:16]} 14. a5 {[%emt 0:04:51]} b5 {[%emt 0:06:08]} 15. axb6 {[%emt 0:00:05]} Nxb6 {[%emt 0:00:08]} 16. Ba2 {[%emt 0:03:36]} Nb5 {[%emt 0:06:36]} 17. e5 {[%emt 0:15:18]} Bg4 {[%emt 0:08:22]} 18. h3 {[%emt 0:16:59]} Bxf3 {[%emt 0:00:16]} 19. Qxf3 {[%emt 0:00:02]} Nd4 {[%emt 0:05:00]} 20. Bxd4 {[%emt 0:08:43]} cxd4 {[%emt 0:00:03]} 21. Ne4 {[%emt 0:00:06]} dxe5 {[%emt 0:01:11]} 22. fxe5 {[%emt 0:00:10]} Bxe5 {[%emt 0:02:54]} 23. d6 {[%emt 0:03:09]} Kg7 {[%emt 0:12:42]} 24. Qb3 {[%emt 0:02:22]} Qd7 {[%emt 0:06:36]} 25. Ng5 {[%emt 0:02:15]} Rb7 {[%emt 0:01:36]} 26. Rf3 {[%emt 0:03:15]} Nc8 {[%emt 0:12:55]} 27. Qd5 {[%emt 0:02:54]} Rb5 {[%emt 0:00:16]} 28. Rxf7+ {[%emt 0:01:16]} Rxf7 {[%emt 0:00:11]} 29. Qxf7+ {[%emt 0:00:50]} Qxf7 {[%emt 0:00:02]} 30. Nxf7 {[%emt 0:00:01]} Nxd6 {[%emt 0:00:31]} 31. Nxd6 {[%emt 0:00:18]} Bxd6 {[%emt 0:00:09]} 32. Bc4 {[%emt 0:00:23]} Rxb2 {[%emt 0:00:11]} 33. Rxa6 {[%emt 0:00:54]} Bg3 {[%emt 0:02:49]} 34. Ra3 {[%emt 0:00:41]} Rb1+ {[%emt 0:02:17]} 35. Bf1 {[%emt 0:00:07]} Be1 {[%emt 0:00:07]} 36. Rd3 {[%emt 0:01:08]} Rb2 {[%emt 0:01:31]} 37. Rf3 {[%emt 0:00:44]} h5 {[%emt 0:00:50]} 38. Bc4 {[%emt 0:00:36]} h4 {[%emt 0:00:34]} 39. Kf1 {[%emt 0:00:47]} Bg3 {[%emt 0:00:17]} 40. Kg1 {[%emt 0:00:43]} Rb1+ {[%emt 0:00:54]} 41. Rf1 {[%emt 0:00:05]} Rb4 {[%emt 0:00:09]} 42. Bd3 {[%emt 0:00:08]} Rb3 {[%emt 0:00:18]} 43. Rf3 {[%emt 0:00:35]} Rc3 {[%emt 0:00:20]} 44. Ba6 {[%emt 0:00:38]} Rc6 {[%emt 0:01:21]} 45. Bd3 {[%emt 0:00:11]} Rc1+ {[%emt 0:00:44]} 46. Rf1 {[%emt 0:00:04]} Rc3 {[%emt 0:00:06]} 47. Rf3 {[%emt 0:00:05]} g5 {[%emt 0:00:08]} 48. Ba6 {[%emt 0:00:43]} Rc6 {[%emt 0:00:40]} 49. Bb5 {[%emt 0:00:35]} Rc1+ {[%emt 0:00:24]} 50. Rf1 {[%emt 0:00:05]} Rc5 {[%emt 0:00:08]} 51. Bd3 {[%emt 0:00:17]} Rc3 {[%emt 0:01:04]} 52. Rd1 {[%emt 0:02:33]} Rb3 {[%emt 0:01:34]} 53. Bf1 {[%emt 0:00:49]} Rb2 {[%emt 0:00:10]} 54. Bc4 {[%emt 0:00:29]} Bf4 {[%emt 0:01:10]} 55. Bd5 {[%emt 0:00:27]} Be3+ {[%emt 0:00:19]} 56. Kf1 {[%emt 0:00:10]} Kf6 {[%emt 0:00:20]} 57. Bf3 {[%emt 0:00:28]} Ke5 {[%emt 0:00:19]} 58. Be2 {[%emt 0:00:43]} Kf4 {[%emt 0:00:52]} 59. Bg4 {[%emt 0:00:46]} Rf2+ {[%emt 0:01:10]} 60. Kg1 {[%emt 0:00:39]} Kg3 {[%emt 0:00:13]} 61. Bf3 {[%emt 0:00:26]} Rxf3+ {[%emt 0:00:09]} 62. Kh1 {[%emt 0:00:01]} Rf2 {[%emt 0:00:20]} 63. Re1 {[%emt 0:00:08]} g4 {[%emt 0:00:20]} 64. hxg4 {[%emt 0:00:12]} h3 {[%emt 0:00:09]} 65. Rg1 {[%emt 0:00:33]} Rxg2 {[%emt 0:00:28]} 66. Rxg2+ {[%emt 0:00:07]} hxg2# {[%emt 0:00:05]} 0-1

[Event "Guimaraes Open 2019"]
[Site "Guimaraes"]
[Date "2019.08.31"]
[Round "5.19"]
[White "Lopez Quevedo, Eduardo"]
[Black "Fernandes, Joao Pedro Murtinho"]
[Result "0-1"]
[ECO "B45"]
[WhiteElo "2188"]
[BlackElo "2044"]
[Annotator "NA"]
[PlyCount "96"]
[EventDate "2019.08.28"]
[EventType "swiss"]
[EventCountry "POR"]
[SourceTitle "playchess.com"]
[Source "ChessBase"]
[SourceQuality "1"]
[TimeControl "5400+30"]

1. e4 {[%emt 0:00:00]} c5 {[%emt 0:00:00]} 2. Nf3 {[%emt 0:00:00]} Nc6 {[%emt 0:00:00]} 3. Nc3 {[%emt 0:00:10]} e6 {[%emt 0:00:25]} 4. d4 {[%emt 0:00:10]} cxd4 {[%emt 0:00:06]} 5. Nxd4 {[%emt 0:00:05]} d6 {[%emt 0:00:56]} 6. h3 {[%emt 0:03:59]} Nf6 {[%emt 0:05:57]} 7. g4 {[%emt 0:00:52]} a6 {[%emt 0:03:53]} 8. Bg2 {[%emt 0:00:42]} Qc7 {[%emt 0:01:00]} 9. O-O {[%emt 0:01:02]} Be7 {[%emt 0:00:50]} 10. Nde2 {[%emt 0:04:39]} O-O {[%emt 0:00:44]} 11. Be3 {[%emt 0:00:50]} Re8 {[%emt 0:05:49]} 12. g5 {[%emt 0:07:32]} Nd7 {[%emt 0:00:16]} 13. f4 {[%emt 0:00:35]} b5 {[%emt 0:09:46]} 14. f5 {[%emt 0:07:08]} Nde5 {[%emt 0:01:16]} 15. b3 {[%emt 0:01:42]} g6 {[%emt 0:05:18]} 16. Qd2 {[%emt 0:06:00]} Bd7 {[%emt 0:05:37]} 17. Nd4 {[%emt 0:07:56]} Nxd4 {[%emt 0:09:41]} 18. Bxd4 {[%emt 0:00:28]} Rac8 {[%emt 0:00:26]} 19. fxe6 {[%emt 0:01:39]} Bxe6 {[%emt 0:01:58]} 20. Rf2 {[%emt 0:05:07]} Bf8 {[%emt 0:09:52]} 21. Nd5 {[%emt 0:05:54]} Bxd5 {[%emt 0:00:09]} 22. exd5 {[%emt 0:00:05]} Bg7 {[%emt 0:01:31]} 23. a4 {[%emt 0:01:56]} Qxc2 {[%emt 0:09:01]} 24. Qxc2 {[%emt 0:21:50]} Rxc2 {[%emt 0:00:07]} 25. Rxc2 {[%emt 0:01:53]} Nf3+ {[%emt 0:00:08]} 26. Kh1 {[%emt 0:00:34]} Nxd4 {[%emt 0:00:18]} 27. Rc7 {[%emt 0:00:10]} Nxb3 {[%emt 0:08:55]} 28. Ra3 {[%emt 0:03:03]} bxa4 {[%emt 0:02:45]} 29. Rxa4 {[%emt 0:00:47]} Re1+ {[%emt 0:00:35]} 30. Bf1 {[%emt 0:00:01]} Rxf1+ {[%emt 0:00:24]} 31. Kg2 {[%emt 0:00:05]} Rf5 {[%emt 0:00:39]} 32. Rc8+ {[%emt 0:02:15]} Bf8 {[%emt 0:00:23]} 33. h4 {[%emt 0:00:51]} Nc5 {[%emt 0:02:17]} 34. Rb4 {[%emt 0:00:14]} Rxd5 {[%emt 0:00:21]} 35. Rbb8 {[%emt 0:01:47]} Ne6 {[%emt 0:00:10]} 36. Ra8 {[%emt 0:00:48]} a5 {[%emt 0:01:08]} 37. Ra7 {[%emt 0:00:02]} Rd4 {[%emt 0:01:35]} 38. Kg3 {[%emt 0:00:20]} a4 {[%emt 0:00:36]} 39. Re8 {[%emt 0:00:07]} Rd3+ {[%emt 0:01:31]} 40. Kg2 {[%emt 0:00:10]} a3 {[%emt 0:00:27]} 41. Kf2 {[%emt 0:00:01]} d5 {[%emt 0:00:43]} 42. Kg2 {[%emt 0:00:09]} d4 {[%emt 0:01:24]} 43. Rb8 {[%emt 0:00:05]} Rc3 {[%emt 0:04:26]} 44. Rbb7 {[%emt 0:00:07]} d3 {[%emt 0:00:32]} 45. Rd7 {[%emt 0:00:05]} Rc2+ {[%emt 0:01:36]} 46. Kf3 {[%emt 0:00:05]} a2 {[%emt 0:01:11]} 47. Rxd3 {[%emt 0:00:40]} Bg7 {[%emt 0:00:11]} 48. Ra8+ {[%emt 0:00:15]} Nf8 {[%emt 0:00:15]} 0-1

[Event "Guimaraes Open 2019"]
[Site "Guimaraes"]
[Date "2019.08.31"]
[Round "5.20"]
[White "Nieves Cabanes, Javier"]
[Black "Sanleon Pravisano, Nieves"]
[Result "1-0"]
[ECO "A09"]
[WhiteElo "2211"]
[BlackElo "1995"]
[Annotator "NA"]
[PlyCount "66"]
[EventDate "2019.08.28"]
[EventType "swiss"]
[EventCountry "POR"]
[SourceTitle "playchess.com"]
[Source "ChessBase"]
[SourceQuality "1"]
[TimeControl "5400+30"]

1. Nf3 {[%emt 0:00:00]} d5 {[%emt 0:00:26]} 2. c4 {[%emt 0:00:00]} d4 {[%emt 0:00:04]} 3. b4 {[%emt 0:00:49]} g6 {[%emt 0:05:31]} 4. g3 {[%emt 0:05:05]} Bg7 {[%emt 0:00:40]} 5. d3 {[%emt 0:00:08]} e5 {[%emt 0:01:30]} 6. Nbd2 {[%emt 0:01:32]} Ne7 {[%emt 0:03:02]} 7. Bg2 {[%emt 0:00:07]} O-O {[%emt 0:01:49]} 8. O-O {[%emt 0:00:30]} Nd7 {[%emt 0:03:11]} 9. a4 {[%emt 0:04:34]} c6 {[%emt 0:09:24]} 10. a5 {[%emt 0:08:55]} Qc7 {[%emt 0:08:10]} 11. Nb3 {[%emt 0:05:53]} f5 {[%emt 0:04:25]} 12. e3 {[%emt 0:04:26]} dxe3 {[%emt 0:05:58]} 13. Bxe3 {[%emt 0:00:32]} Nf6 {[%emt 0:01:24]} 14. Re1 {[%emt 0:06:41]} Re8 {[%emt 0:14:49]} 15. Rc1 {[%emt 0:03:38]} f4 {[%emt 0:10:23]} 16. Bd2 {[%emt 0:01:06]} Bg4 {[%emt 0:01:21]} 17. Bc3 {[%emt 0:01:18]} Bxf3 {[%emt 0:00:55]} 18. Qxf3 {[%emt 0:03:04]} Nf5 {[%emt 0:01:56]} 19. a6 {[%emt 0:00:53]} Rac8 {[%emt 0:04:22]} 20. axb7 {[%emt 0:02:04]} Qxb7 {[%emt 0:00:09]} 21. b5 {[%emt 0:01:00]} fxg3 {[%emt 0:00:59]} 22. hxg3 {[%emt 0:00:22]} Qb8 {[%emt 0:00:32]} 23. Na5 {[%emt 0:05:51]} cxb5 {[%emt 0:01:38]} 24. Nc6 {[%emt 0:00:06]} e4 {[%emt 0:04:09]} 25. Rxe4 {[%emt 0:05:02]} Nxe4 {[%emt 0:05:15]} 26. dxe4 {[%emt 0:00:47]} Qb6 {[%emt 0:01:14]} 27. exf5 {[%emt 0:02:10]} Bxc3 {[%emt 0:02:12]} 28. Qxc3 {[%emt 0:01:34]} Rxc6 {[%emt 0:01:47]} 29. Bd5+ {[%emt 0:00:06]} Kf8 {[%emt 0:00:20]} 30. Qh8+ {[%emt 0:00:25]} Ke7 {[%emt 0:00:36]} 31. Re1+ {[%emt 0:00:50]} Re6 {[%emt 0:00:04]} 32. Qxe8+ {[%emt 0:01:02]} Kxe8 {[%emt 0:00:07]} 33. Rxe6+ {[%emt 0:00:05]} Qxe6 {[%emt 0:00:07]} 1-0

[Event "Guimaraes Open 2019"]
[Site "Guimaraes"]
[Date "2019.08.31"]
[Round "5.21"]
[White "Jimenez Fernandez, Rebeca"]
[Black "Campora Sivori, Daniel Hugo"]
[Result "0-1"]
[ECO "C66"]
[WhiteElo "1928"]
[BlackElo "2426"]
[Annotator "NA"]
[PlyCount "94"]
[EventDate "2019.08.28"]
[EventType "swiss"]
[EventCountry "POR"]
[SourceTitle "playchess.com"]
[Source "ChessBase"]
[SourceQuality "1"]
[TimeControl "5400+30"]

1. e4 {[%emt 0:02:03]} e5 {[%emt 0:00:00]} 2. Nf3 {[%emt 0:00:05]} Nc6 {[%emt 0:00:00]} 3. Bb5 {[%emt 0:00:05]} Nf6 4. O-O d6 {[%emt 0:00:49]} 5. c3 {[%emt 0:00:49]} Be7 {[%emt 0:00:35]} 6. Re1 {[%emt 0:00:07]} O-O 7. h3 Bd7 {[%emt 0:02:41]} 8. d4 {[%emt 0:01:35]} h6 {[%emt 0:00:06]} 9. Nbd2 {[%emt 0:01:21]} Nxd4 {[%emt 0:00:14]} 10. Nxd4 {[%emt 0:03:24]} exd4 {[%emt 0:00:08]} 11. Bxd7 {[%emt 0:00:46]} dxc3 {[%emt 0:00:07]} 12. Ba4 {[%emt 0:04:07]} cxd2 {[%emt 0:00:09]} 13. Bxd2 {[%emt 0:00:16]} Nd7 {[%emt 0:00:10]} 14. Bxh6 {[%emt 0:10:39]} Bf6 {[%emt 0:00:08]} 15. Bc1 {[%emt 0:19:20]} Nc5 {[%emt 0:00:13]} 16. Bc2 {[%emt 0:00:33]} Re8 {[%emt 0:00:19]} 17. Rb1 {[%emt 0:14:49]} a5 {[%emt 0:00:16]} 18. Qh5 {[%emt 0:10:36]} Re5 {[%emt 0:03:40]} 19. Qg4 {[%emt 0:03:24]} Qd7 {[%emt 0:00:51]} 20. Qxd7 {[%emt 0:03:23]} Nxd7 {[%emt 0:00:14]} 21. f4 {[%emt 0:00:25]} Rc5 {[%emt 0:01:52]} 22. Bd3 {[%emt 0:01:06]} Bd4+ {[%emt 0:00:13]} 23. Kh2 {[%emt 0:03:32]} Rh5 {[%emt 0:03:38]} 24. g4 {[%emt 0:05:59]} Rh6 {[%emt 0:00:09]} 25. Be3 {[%emt 0:00:19]} Bxe3 {[%emt 0:00:34]} 26. Rxe3 {[%emt 0:00:05]} Re6 {[%emt 0:01:39]} 27. Bc4 {[%emt 0:03:19]} Re7 {[%emt 0:00:07]} 28. g5 {[%emt 0:01:32]} Nb6 {[%emt 0:00:44]} 29. Bd3 {[%emt 0:00:33]} Nd5 {[%emt 0:01:50]} 30. Rf3 {[%emt 0:04:09]} Nb4 {[%emt 0:00:09]} 31. Re1 {[%emt 0:02:48]} Nxa2 {[%emt 0:00:11]} 32. g6 Nb4 {[%emt 0:00:12]} 33. gxf7+ {[%emt 0:02:58]} Kxf7 {[%emt 0:00:32]} 34. Bb1 {[%emt 0:00:47]} Kg8 {[%emt 0:09:47]} 35. Rg1 {[%emt 0:00:50]} Rf8 {[%emt 0:00:09]} 36. f5 {[%emt 0:00:38]} Rf6 {[%emt 0:00:30]} 37. Rfg3 {[%emt 0:00:37]} Kf8 {[%emt 0:00:27]} 38. h4 {[%emt 0:01:03]} c5 39. Rg5 {[%emt 0:00:39]} Rh6 {[%emt 0:02:27]} 40. Kh3 c4 {[%emt 0:03:03]} 41. f6 {[%emt 0:00:54]} Rxf6 {[%emt 0:00:48]} 42. Rxa5 {[%emt 0:00:07]} Nd3 {[%emt 0:00:34]} 43. b3 {[%emt 0:01:07]} Rxe4 {[%emt 0:03:03]} 44. bxc4 {[%emt 0:00:22]} Nf2+ {[%emt 0:01:20]} 45. Kg3 {[%emt 0:00:38]} Rg4+ {[%emt 0:00:15]} 46. Kh2 {[%emt 0:00:20]} Rxh4+ {[%emt 0:00:08]} 47. Kg2 {[%emt 0:00:28]} Rg4+ {[%emt 0:00:08]} 0-1